[Event "Titled Tuesday Blitz December 13 Late 2022"]
[White "Pakleza, Zbigniew"]
[Black "Kamsky, Gata"]
[WhiteFideId "1119290"]
[BlackFideId "2000024"]
[WhiteElo "2410"]
[BlackElo "2666"]
[Result "1/2-1/2"]
[Round "09"]
[TimeControl "180+1"]
[Date "2022.12.13"]
[WhiteClock "0:00:57"]
[BlackClock "0:01:36"]

1. d4 {[%clk 0:03:00]}  Nf6 {[%clk 0:02:46]} 2. Nf3 {[%clk 0:03:00]}  d5 {[%clk 0:02:40]} 3. Bf4 {[%clk 0:02:59]}  Bf5 {[%clk 0:02:31]} 4. c4 {[%clk 0:02:57]}  e6 {[%clk 0:02:28]} 5. Nc3 {[%clk 0:02:56]}  Bb4 {[%clk 0:02:24]} 6. e3 {[%clk 0:02:54]}  O-O {[%clk 0:02:22]} 7. Rc1 {[%clk 0:02:39]}  c5 {[%clk 0:02:18]} 8. Bd3 {[%clk 0:02:21]}  dxc4 {[%clk 0:02:13]} 9. Bxc4 {[%clk 0:02:07]}  Nc6 {[%clk 0:02:09]} 10. O-O {[%clk 0:02:02]}  cxd4 {[%clk 0:02:08]} 11. Nxd4 {[%clk 0:01:56]}  Nxd4 {[%clk 0:02:07]} 12. Qxd4 {[%clk 0:01:52]}  Qxd4 {[%clk 0:02:07]} 13. exd4 {[%clk 0:01:53]}  Rac8 {[%clk 0:02:05]} 14. Bb3 {[%clk 0:01:48]}  Rfd8 {[%clk 0:02:03]} 15. Rfd1 {[%clk 0:01:48]}  a6 {[%clk 0:02:01]} 16. a3 {[%clk 0:01:42]}  Be7 {[%clk 0:02:00]} 17. h3 {[%clk 0:01:29]}  h6 {[%clk 0:01:58]} 18. Kf1 {[%clk 0:01:28]}  Ne4 {[%clk 0:01:56]} 19. Nxe4 {[%clk 0:01:16]}  Bxe4 {[%clk 0:01:55]} 20. Rxc8 {[%clk 0:01:16]}  Rxc8 {[%clk 0:01:54]} 21. Rc1 {[%clk 0:01:16]}  Rxc1+ {[%clk 0:01:53]} 22. Bxc1 {[%clk 0:01:17]}  Bf6 {[%clk 0:01:51]} 23. Be3 {[%clk 0:01:14]}  Kf8 {[%clk 0:01:50]} 24. f3 {[%clk 0:01:14]}  Bd5 {[%clk 0:01:47]} 25. Bc2 {[%clk 0:01:14]}  h5 {[%clk 0:01:46]} 26. Ke2 {[%clk 0:01:09]}  g6 {[%clk 0:01:44]} 27. g4 {[%clk 0:01:07]}  Ke7 {[%clk 0:01:41]} 28. Be4 {[%clk 0:01:00]}  Kd6 {[%clk 0:01:37]} 29. Kd3 {[%clk 0:01:00]}  b5 {[%clk 0:01:36]} 30. Bf4+ {[%clk 0:00:57]} 1/2-1/2


[Site "https://www.chess.com"]

[Event "Titled Tuesday Blitz December 13 Late 2022"]
[White "Petrovic, Aleksa"]
[Black "Curtis, John"]
[WhiteFideId "967629"]
[BlackFideId "3200256"]
[WhiteElo "2230"]
[BlackElo "2203"]
[Result "0-1"]
[Round "09"]
[TimeControl "180+1"]
[Date "2022.12.14"]
[WhiteClock "0:00:09"]
[BlackClock "0:00:04"]

1. d4 {[%clk 0:02:55]}  Nf6 {[%clk 0:02:59]} 2. c4 {[%clk 0:02:53]}  e6 {[%clk 0:02:59]} 3. Nf3 {[%clk 0:02:53]}  Bb4+ {[%clk 0:02:58]} 4. Bd2 {[%clk 0:02:52]}  Qe7 {[%clk 0:02:57]} 5. g3 {[%clk 0:02:51]}  Ne4 {[%clk 0:02:55]} 6. a3 {[%clk 0:02:26]}  Bxd2+ {[%clk 0:02:49]} 7. Nbxd2 {[%clk 0:02:25]}  Nxd2 {[%clk 0:02:49]} 8. Qxd2 {[%clk 0:02:26]}  O-O {[%clk 0:02:47]} 9. Bg2 {[%clk 0:02:24]}  d6 {[%clk 0:02:47]} 10. O-O {[%clk 0:02:20]}  e5 {[%clk 0:02:41]} 11. d5 {[%clk 0:02:18]}  Nd7 {[%clk 0:02:34]} 12. b4 {[%clk 0:02:13]}  a5 {[%clk 0:02:26]} 13. e4 {[%clk 0:02:05]}  g6 {[%clk 0:01:56]} 14. Ne1 {[%clk 0:02:04]}  axb4 {[%clk 0:01:48]} 15. Qxb4 {[%clk 0:01:58]}  Nc5 {[%clk 0:01:47]} 16. Nc2 {[%clk 0:01:53]}  Ra4 {[%clk 0:01:44]} 17. Qc3 {[%clk 0:01:50]}  Bd7 {[%clk 0:01:43]} 18. f4 {[%clk 0:01:44]}  f6 {[%clk 0:01:32]} 19. f5 {[%clk 0:01:38]}  gxf5 {[%clk 0:01:31]} 20. exf5 {[%clk 0:01:39]}  Kh8 {[%clk 0:01:29]} 21. Rae1 {[%clk 0:01:35]}  Qg7 {[%clk 0:01:21]} 22. Ne3 {[%clk 0:01:27]}  Rfa8 {[%clk 0:01:18]} 23. Ra1 {[%clk 0:01:20]}  Rg8 {[%clk 0:01:06]} 24. Rfb1 {[%clk 0:01:07]}  b6 {[%clk 0:01:05]} 25. Rb4 {[%clk 0:01:06]}  Rga8 {[%clk 0:01:02]} 26. Rxa4 {[%clk 0:01:03]}  Nxa4 {[%clk 0:00:59]} 27. Qb4 {[%clk 0:00:58]}  Nc5 {[%clk 0:00:59]} 28. Rf1 {[%clk 0:00:46]}  Qh6 {[%clk 0:00:56]} 29. Qc3 {[%clk 0:00:43]}  Rg8 {[%clk 0:00:36]} 30. Qe1 {[%clk 0:00:35]}  Nd3 {[%clk 0:00:32]} 31. Qe2 {[%clk 0:00:30]}  Nc5 {[%clk 0:00:32]} 32. g4 {[%clk 0:00:27]}  Qh4 {[%clk 0:00:18]} 33. Qf2 {[%clk 0:00:24]}  Qxf2+ {[%clk 0:00:16]} 34. Kxf2 {[%clk 0:00:24]}  h6 {[%clk 0:00:16]} 35. h4 {[%clk 0:00:24]}  Nd3+ {[%clk 0:00:12]} 36. Kg3 {[%clk 0:00:21]}  Nf4 {[%clk 0:00:11]} 37. Be4 {[%clk 0:00:19]}  h5 {[%clk 0:00:08]} 38. Rxf4 {[%clk 0:00:16]}  exf4+ {[%clk 0:00:07]} 39. Kxf4 {[%clk 0:00:17]}  hxg4 {[%clk 0:00:08]} 40. Nxg4 {[%clk 0:00:18]}  Kg7 {[%clk 0:00:07]} 41. h5 {[%clk 0:00:17]}  Ra8 {[%clk 0:00:06]} 42. h6+ {[%clk 0:00:17]}  Kf7 {[%clk 0:00:06]} 43. Bf3 {[%clk 0:00:15]}  Ba4 {[%clk 0:00:06]} 44. Ne3 {[%clk 0:00:13]}  Rh8 {[%clk 0:00:06]} 45. Bh5+ {[%clk 0:00:13]}  Ke7 {[%clk 0:00:04]} 46. Ng4 {[%clk 0:00:14]}  Bd1 {[%clk 0:00:04]} 47. Bg6 {[%clk 0:00:07]}  Bxg4 {[%clk 0:00:02]} 48. Kxg4 {[%clk 0:00:08]}  Rxh6 {[%clk 0:00:03]} 49. Kf4 {[%clk 0:00:09]}  Rh1 {[%clk 0:00:03]} 50. Ke3 {[%clk 0:00:09]}  Ra1 {[%clk 0:00:03]} 51. Kd4 {[%clk 0:00:09]}  Rxa3 {[%clk 0:00:04]} 0-1


[Site "https://www.chess.com"]

[Event "Titled Tuesday Blitz December 13 Late 2022"]
[White "Polster, Christian"]
[Black "Kanyamarala, Trisha"]
[WhiteFideId "12965081"]
[BlackFideId "45004722"]
[WhiteElo "2195"]
[BlackElo "2135"]
[Result "1-0"]
[Round "09"]
[TimeControl "180+1"]
[Date "2022.12.14"]
[WhiteClock "0:00:19"]
[BlackClock "0:00:25"]

1. e4 {[%clk 0:02:36]}  c5 {[%clk 0:02:56]} 2. Nc3 {[%clk 0:02:36]}  Nc6 {[%clk 0:02:54]} 3. Nge2 {[%clk 0:02:36]}  g6 {[%clk 0:02:53]} 4. d4 {[%clk 0:02:36]}  cxd4 {[%clk 0:02:52]} 5. Nxd4 {[%clk 0:02:37]}  Bg7 {[%clk 0:02:51]} 6. Be3 {[%clk 0:02:35]}  d6 {[%clk 0:02:49]} 7. Bc4 {[%clk 0:02:33]}  Nf6 {[%clk 0:02:49]} 8. f3 {[%clk 0:02:32]}  O-O {[%clk 0:02:35]} 9. Bb3 {[%clk 0:02:32]}  a6 {[%clk 0:02:31]} 10. Qd2 {[%clk 0:02:30]}  Nxd4 {[%clk 0:02:30]} 11. Bxd4 {[%clk 0:02:31]}  b5 {[%clk 0:02:31]} 12. O-O-O {[%clk 0:02:27]}  Bb7 {[%clk 0:02:30]} 13. Kb1 {[%clk 0:02:23]}  b4 {[%clk 0:02:23]} 14. Nd5 {[%clk 0:02:19]}  Nxd5 {[%clk 0:02:22]} 15. Bxd5 {[%clk 0:02:20]}  Bxd5 {[%clk 0:02:19]} 16. exd5 {[%clk 0:02:19]}  Qa5 {[%clk 0:02:14]} 17. Bxg7 {[%clk 0:02:08]}  Kxg7 {[%clk 0:02:15]} 18. g4 {[%clk 0:02:01]}  Rac8 {[%clk 0:02:09]} 19. h4 {[%clk 0:01:59]}  h6 {[%clk 0:02:07]} 20. h5 {[%clk 0:01:56]}  g5 {[%clk 0:02:06]} 21. f4 {[%clk 0:01:53]}  gxf4 {[%clk 0:01:42]} 22. Qxf4 {[%clk 0:01:39]}  Qc5 {[%clk 0:01:41]} 23. Qf5 {[%clk 0:01:32]}  e6 {[%clk 0:01:28]} 24. dxe6 {[%clk 0:01:26]}  Qxf5 {[%clk 0:01:24]} 25. gxf5 {[%clk 0:01:24]}  fxe6 {[%clk 0:01:22]} 26. fxe6 {[%clk 0:01:22]}  Kf6 {[%clk 0:01:21]} 27. Rxd6 {[%clk 0:01:18]}  Ke7 {[%clk 0:01:19]} 28. Rxa6 {[%clk 0:01:12]}  Rf2 {[%clk 0:01:19]} 29. Rc1 {[%clk 0:01:00]}  Rc5 {[%clk 0:01:18]} 30. Ra7+ {[%clk 0:00:55]}  Kxe6 {[%clk 0:01:17]} 31. Ra6+ {[%clk 0:00:54]}  Kf7 {[%clk 0:00:59]} 32. Rxh6 {[%clk 0:00:52]}  Kg7 {[%clk 0:00:59]} 33. Rg6+ {[%clk 0:00:49]}  Kf7 {[%clk 0:00:56]} 34. Rb6 {[%clk 0:00:34]}  Rc4 {[%clk 0:00:44]} 35. h6 {[%clk 0:00:28]}  Rh2 {[%clk 0:00:40]} 36. b3 {[%clk 0:00:27]}  Rf4 {[%clk 0:00:36]} 37. Kb2 {[%clk 0:00:25]}  Kg8 {[%clk 0:00:32]} 38. Rg1+ {[%clk 0:00:19]}  Kf7 {[%clk 0:00:27]} 39. Rg7+ {[%clk 0:00:18]}  Kf8 {[%clk 0:00:25]} 40. Rb8# {[%clk 0:00:19]} 1-0


[Site "https://www.chess.com"]

[Event "Titled Tuesday Blitz December 13 Late 2022"]
[White "Rodriguez Fontecha, Marcos"]
[Black "Harshavardhan G B"]
[WhiteFideId "2256576"]
[BlackFideId "25059009"]
[WhiteElo "2263"]
[BlackElo "2323"]
[Result "1-0"]
[Round "09"]
[TimeControl "180+1"]
[Date "2022.12.13"]
[WhiteClock "0:00:30"]
[BlackClock "0:01:08"]

1. Nf3 {[%clk 0:02:50]}  Nf6 {[%clk 0:02:57]} 2. g4 {[%clk 0:02:47]}  g6 {[%clk 0:02:57]} 3. g5 {[%clk 0:02:47]}  Ne4 {[%clk 0:02:54]} 4. d3 {[%clk 0:02:46]}  Nd6 {[%clk 0:02:54]} 5. e4 {[%clk 0:02:46]}  Nc6 {[%clk 0:02:50]} 6. h4 {[%clk 0:02:46]}  h5 {[%clk 0:02:47]} 7. Nc3 {[%clk 0:02:36]}  e5 {[%clk 0:02:45]} 8. Nd5 {[%clk 0:02:34]}  Bg7 {[%clk 0:02:43]} 9. Be3 {[%clk 0:02:26]}  b6 {[%clk 0:02:41]} 10. Bh3 {[%clk 0:02:23]}  Bb7 {[%clk 0:02:38]} 11. Qd2 {[%clk 0:01:54]}  Nd4 {[%clk 0:02:34]} 12. Nxd4 {[%clk 0:01:49]}  exd4 {[%clk 0:02:30]} 13. Bf4 {[%clk 0:01:48]}  Bxd5 {[%clk 0:02:29]} 14. exd5 {[%clk 0:01:49]}  O-O {[%clk 0:02:28]} 15. O-O-O {[%clk 0:01:43]}  a5 {[%clk 0:02:23]} 16. Rhe1 {[%clk 0:01:27]}  a4 {[%clk 0:02:21]} 17. a3 {[%clk 0:01:22]}  Re8 {[%clk 0:02:14]} 18. Rxe8+ {[%clk 0:01:21]}  Qxe8 {[%clk 0:02:13]} 19. Re1 {[%clk 0:01:20]}  Qf8 {[%clk 0:02:10]} 20. Bxd7 {[%clk 0:01:11]}  Rd8 {[%clk 0:02:07]} 21. Bc6 {[%clk 0:01:10]}  Rc8 {[%clk 0:01:54]} 22. Qe2 {[%clk 0:01:01]}  Nf5 {[%clk 0:01:40]} 23. Bd7 {[%clk 0:01:00]}  Rd8 {[%clk 0:01:24]} 24. Bxf5 {[%clk 0:00:59]}  gxf5 {[%clk 0:01:25]} 25. Qf3 {[%clk 0:00:45]}  Qc5 {[%clk 0:01:21]} 26. Qxh5 {[%clk 0:00:34]}  Qxd5 {[%clk 0:01:16]} 27. Kb1 {[%clk 0:00:31]}  c5 {[%clk 0:01:13]} 28. g6 {[%clk 0:00:31]}  fxg6 {[%clk 0:01:10]} 29. Qxg6 {[%clk 0:00:32]}  Qf7 {[%clk 0:01:09]} 30. Qxb6 {[%clk 0:00:30]}  c4 {[%clk 0:01:08]} 31. Qxd8+ {[%clk 0:00:30]} 1-0


[Site "https://www.chess.com"]

[Event "Titled Tuesday Blitz December 13 Late 2022"]
[White "Rosen, Eric"]
[Black "Gutkin, Ilya"]
[WhiteFideId "2032562"]
[BlackFideId "16203470"]
[WhiteElo "2362"]
[BlackElo "2265"]
[Result "1-0"]
[Round "09"]
[TimeControl "180+1"]
[Date "2022.12.13"]
[WhiteClock "0:00:10"]
[BlackClock "0:00:01"]

1. d4 {[%clk 0:02:50]}  e6 {[%clk 0:03:00]} 2. Bf4 {[%clk 0:02:49]}  c5 {[%clk 0:02:59]} 3. e3 {[%clk 0:02:49]}  d5 {[%clk 0:02:58]} 4. Nf3 {[%clk 0:02:49]}  Bd6 {[%clk 0:02:58]} 5. Bb5+ {[%clk 0:02:30]}  Nc6 {[%clk 0:02:58]} 6. O-O {[%clk 0:02:28]}  Ne7 {[%clk 0:02:49]} 7. Bxd6 {[%clk 0:02:15]}  Qxd6 {[%clk 0:02:49]} 8. c4 {[%clk 0:02:09]}  dxc4 {[%clk 0:02:30]} 9. Na3 {[%clk 0:02:02]}  cxd4 {[%clk 0:02:13]} 10. Nxc4 {[%clk 0:02:00]}  Qc5 {[%clk 0:01:52]} 11. Qxd4 {[%clk 0:01:59]}  Qxd4 {[%clk 0:01:48]} 12. Nxd4 {[%clk 0:01:59]}  O-O {[%clk 0:01:41]} 13. Nxc6 {[%clk 0:01:54]}  bxc6 {[%clk 0:01:39]} 14. Ba4 {[%clk 0:01:54]}  Ba6 {[%clk 0:01:38]} 15. Rac1 {[%clk 0:01:46]}  Rab8 {[%clk 0:01:33]} 16. Bb3 {[%clk 0:01:30]}  Rfd8 {[%clk 0:01:16]} 17. Rfd1 {[%clk 0:01:27]}  Bxc4 {[%clk 0:00:16]} 18. Bxc4 {[%clk 0:01:27]}  Rxd1+ {[%clk 0:00:13]} 19. Rxd1 {[%clk 0:01:28]}  Nd5 {[%clk 0:00:12]} 20. Rd2 {[%clk 0:01:22]}  Kf8 {[%clk 0:00:12]} 21. Kf1 {[%clk 0:01:22]}  Ke7 {[%clk 0:00:11]} 22. g3 {[%clk 0:01:20]}  Nf6 {[%clk 0:00:11]} 23. f3 {[%clk 0:01:19]}  Nd5 {[%clk 0:00:11]} 24. Ke2 {[%clk 0:01:18]}  Nb6 {[%clk 0:00:10]} 25. Bd3 {[%clk 0:01:14]}  c5 {[%clk 0:00:10]} 26. Rc2 {[%clk 0:01:07]}  Rc8 {[%clk 0:00:10]} 27. b3 {[%clk 0:01:07]}  h6 {[%clk 0:00:10]} 28. h4 {[%clk 0:01:07]}  g5 {[%clk 0:00:09]} 29. h5 {[%clk 0:00:51]}  Nd5 {[%clk 0:00:10]} 30. a3 {[%clk 0:00:45]}  Kd6 {[%clk 0:00:09]} 31. e4 {[%clk 0:00:34]}  Nb6 {[%clk 0:00:09]} 32. Ke3 {[%clk 0:00:34]}  f6 {[%clk 0:00:04]} 33. Bb5 {[%clk 0:00:32]}  Ke7 {[%clk 0:00:04]} 34. f4 {[%clk 0:00:29]}  gxf4+ {[%clk 0:00:03]} 35. gxf4 {[%clk 0:00:30]}  Kf7 {[%clk 0:00:03]} 36. Ba6 {[%clk 0:00:26]}  Rg8 {[%clk 0:00:01]} 37. Rxc5 {[%clk 0:00:24]}  Rg3+ {[%clk 0:00:01]} 38. Kf2 {[%clk 0:00:24]}  Rxb3 {[%clk 0:00:02]} 39. Rc7+ {[%clk 0:00:25]}  Kf8 {[%clk 0:00:01]} 40. a4 {[%clk 0:00:19]}  Nxa4 {[%clk 0:00:01]} 41. Rxa7 {[%clk 0:00:20]}  Nc5 {[%clk 0:00:01]} 42. Bc4 {[%clk 0:00:10]} 1-0


[Site "https://www.chess.com"]

[Event "Titled Tuesday Blitz December 13 Late 2022"]
[White "Sanchez, Robert"]
[Black "Kleiman, Jake"]
[WhiteFideId "2034360"]
[BlackFideId "2020041"]
[WhiteElo "2350"]
[BlackElo "2606"]
[Result "0-1"]
[Round "09"]
[TimeControl "180+1"]
[Date "2022.12.14"]
[WhiteClock "0:00:04"]
[BlackClock "0:00:14"]

1. e4 {[%clk 0:03:00]}  e5 {[%clk 0:02:58]} 2. Nf3 {[%clk 0:03:01]}  Nc6 {[%clk 0:02:59]} 3. Bb5 {[%clk 0:03:01]}  a6 {[%clk 0:03:00]} 4. Ba4 {[%clk 0:03:01]}  Nf6 {[%clk 0:03:00]} 5. d3 {[%clk 0:03:01]}  b5 {[%clk 0:03:01]} 6. Bb3 {[%clk 0:03:01]}  Bc5 {[%clk 0:03:02]} 7. Nc3 {[%clk 0:03:01]}  d6 {[%clk 0:03:02]} 8. Bg5 {[%clk 0:03:00]}  h6 {[%clk 0:03:02]} 9. Bh4 {[%clk 0:03:00]}  g5 {[%clk 0:02:59]} 10. Nxg5 {[%clk 0:03:00]}  hxg5 {[%clk 0:02:59]} 11. Bxg5 {[%clk 0:03:01]}  Rg8 {[%clk 0:02:54]} 12. h4 {[%clk 0:03:01]}  Bb4 {[%clk 0:02:29]} 13. Qf3 {[%clk 0:02:38]}  Rg6 {[%clk 0:02:29]} 14. O-O-O {[%clk 0:02:26]}  Nd4 {[%clk 0:02:21]} 15. Qe3 {[%clk 0:02:16]}  Bxc3 {[%clk 0:02:16]} 16. bxc3 {[%clk 0:02:17]}  Nxb3+ {[%clk 0:02:16]} 17. cxb3 {[%clk 0:02:16]}  Ng4 {[%clk 0:02:01]} 18. Qe2 {[%clk 0:02:14]}  f6 {[%clk 0:02:01]} 19. Bd2 {[%clk 0:02:04]}  f5 {[%clk 0:01:37]} 20. f3 {[%clk 0:01:59]}  Nf6 {[%clk 0:01:33]} 21. Bg5 {[%clk 0:01:46]}  Qe7 {[%clk 0:01:30]} 22. Kb2 {[%clk 0:01:41]}  f4 {[%clk 0:01:27]} 23. d4 {[%clk 0:01:36]}  Be6 {[%clk 0:01:15]} 24. d5 {[%clk 0:01:27]}  Bd7 {[%clk 0:01:14]} 25. c4 {[%clk 0:01:27]}  Kf7 {[%clk 0:01:09]} 26. Rc1 {[%clk 0:01:21]}  b4 {[%clk 0:01:02]} 27. Qf2 {[%clk 0:01:10]}  c5 {[%clk 0:00:50]} 28. dxc6 {[%clk 0:01:09]}  Bxc6 {[%clk 0:00:50]} 29. Rhd1 {[%clk 0:01:09]}  Qc7 {[%clk 0:00:47]} 30. Qd2 {[%clk 0:01:02]}  Nd7 {[%clk 0:00:37]} 31. Qxb4 {[%clk 0:00:57]}  Nc5 {[%clk 0:00:37]} 32. Qd2 {[%clk 0:00:45]}  a5 {[%clk 0:00:35]} 33. Qf2 {[%clk 0:00:25]}  Rb8 {[%clk 0:00:31]} 34. g4 {[%clk 0:00:23]}  a4 {[%clk 0:00:27]} 35. Rc3 {[%clk 0:00:17]}  axb3 {[%clk 0:00:27]} 36. Rxb3 {[%clk 0:00:18]}  Nxb3 {[%clk 0:00:26]} 37. axb3 {[%clk 0:00:18]}  Qb6 {[%clk 0:00:22]} 38. Qc2 {[%clk 0:00:14]}  Ba4 {[%clk 0:00:18]} 39. Rd3 {[%clk 0:00:13]}  Rgg8 {[%clk 0:00:17]} 40. Qc3 {[%clk 0:00:10]}  Rgc8 {[%clk 0:00:16]} 41. Kc2 {[%clk 0:00:09]}  Bb5 {[%clk 0:00:14]} 42. Rd5 {[%clk 0:00:06]}  Bd7 {[%clk 0:00:14]} 43. h5 {[%clk 0:00:06]}  Be6 {[%clk 0:00:14]} 44. Rd3 {[%clk 0:00:05]}  Qa6 {[%clk 0:00:14]} 45. Kb2 {[%clk 0:00:05]}  Bxc4 {[%clk 0:00:14]} 46. Rd2 {[%clk 0:00:04]}  Rxb3+ {[%clk 0:00:14]} 0-1


[Site "https://www.chess.com"]

[Event "Titled Tuesday Blitz December 13 Late 2022"]
[White "Sarana, Alexey"]
[Black "Paravyan, David"]
[WhiteFideId "24133795"]
[BlackFideId "4194985"]
[WhiteElo "2708"]
[BlackElo "2551"]
[Result "1-0"]
[Round "09"]
[TimeControl "180+1"]
[Date "2022.12.13"]
[WhiteClock "0:00:06"]
[BlackClock "0:00:01"]

1. d4 {[%clk 0:03:00]}  Nf6 {[%clk 0:02:59]} 2. c4 {[%clk 0:03:00]}  g6 {[%clk 0:02:59]} 3. Nc3 {[%clk 0:03:01]}  d5 {[%clk 0:03:00]} 4. Nf3 {[%clk 0:03:02]}  Bg7 {[%clk 0:03:00]} 5. h4 {[%clk 0:03:03]}  O-O {[%clk 0:02:59]} 6. cxd5 {[%clk 0:03:01]}  Nxd5 {[%clk 0:03:00]} 7. h5 {[%clk 0:03:02]}  Bg4 {[%clk 0:03:00]} 8. hxg6 {[%clk 0:03:02]}  hxg6 {[%clk 0:03:01]} 9. Nh2 {[%clk 0:02:59]}  Nxc3 {[%clk 0:03:01]} 10. bxc3 {[%clk 0:02:59]}  Bd7 {[%clk 0:03:01]} 11. Nf3 {[%clk 0:02:55]}  Bg4 {[%clk 0:03:01]} 12. Qd3 {[%clk 0:02:41]}  c5 {[%clk 0:02:59]} 13. Ne5 {[%clk 0:02:42]}  Bxe5 {[%clk 0:03:00]} 14. dxe5 {[%clk 0:02:42]}  Qxd3 {[%clk 0:03:01]} 15. exd3 {[%clk 0:02:42]}  Nc6 {[%clk 0:02:56]} 16. f4 {[%clk 0:02:41]}  Rfd8 {[%clk 0:02:54]} 17. Be3 {[%clk 0:02:41]}  Rac8 {[%clk 0:02:47]} 18. Be2 {[%clk 0:02:30]}  Bxe2 {[%clk 0:02:29]} 19. Kxe2 {[%clk 0:02:31]}  b6 {[%clk 0:02:24]} 20. Rh4 {[%clk 0:02:26]}  Kg7 {[%clk 0:02:24]} 21. Rah1 {[%clk 0:02:26]}  Rh8 {[%clk 0:02:24]} 22. Kf3 {[%clk 0:01:53]}  Rxh4 {[%clk 0:02:20]} 23. Rxh4 {[%clk 0:01:54]}  e6 {[%clk 0:02:17]} 24. g4 {[%clk 0:01:43]}  Rh8 {[%clk 0:02:07]} 25. Rxh8 {[%clk 0:01:41]}  Kxh8 {[%clk 0:02:08]} 26. Ke4 {[%clk 0:01:33]}  Kg7 {[%clk 0:02:07]} 27. a3 {[%clk 0:01:28]}  Ne7 {[%clk 0:01:55]} 28. c4 {[%clk 0:01:27]}  Nc6 {[%clk 0:01:43]} 29. Bf2 {[%clk 0:01:17]}  Kf8 {[%clk 0:01:35]} 30. Be1 {[%clk 0:01:05]}  Ke8 {[%clk 0:01:31]} 31. Bc3 {[%clk 0:01:04]}  Kd7 {[%clk 0:01:29]} 32. Bd2 {[%clk 0:01:02]}  Nd4 {[%clk 0:01:21]} 33. Bc3 {[%clk 0:00:59]}  Nc6 {[%clk 0:01:19]} 34. Bd2 {[%clk 0:00:58]}  a6 {[%clk 0:00:37]} 35. a4 {[%clk 0:00:57]}  Nd4 {[%clk 0:00:29]} 36. Bc3 {[%clk 0:00:56]}  Nb3 {[%clk 0:00:29]} 37. Ke3 {[%clk 0:00:50]}  Kc6 {[%clk 0:00:29]} 38. Ke4 {[%clk 0:00:39]}  b5 {[%clk 0:00:25]} 39. cxb5+ {[%clk 0:00:39]}  axb5 {[%clk 0:00:26]} 40. axb5+ {[%clk 0:00:38]}  Kxb5 {[%clk 0:00:27]} 41. f5 {[%clk 0:00:32]}  gxf5+ {[%clk 0:00:16]} 42. gxf5 {[%clk 0:00:33]}  Kc6 {[%clk 0:00:10]} 43. f6 {[%clk 0:00:13]}  Nc1 {[%clk 0:00:08]} 44. Bd2 {[%clk 0:00:05]}  Na2 {[%clk 0:00:08]} 45. Be1 {[%clk 0:00:02]}  Nb4 {[%clk 0:00:09]} 46. Bd2 {[%clk 0:00:02]}  Nc2 {[%clk 0:00:08]} 47. Bc3 {[%clk 0:00:02]}  Na3 {[%clk 0:00:07]} 48. Bb2 {[%clk 0:00:03]}  Nb5 {[%clk 0:00:07]} 49. Ba1 {[%clk 0:00:03]}  Na7 {[%clk 0:00:06]} 50. Bb2 {[%clk 0:00:03]}  Nc8 {[%clk 0:00:06]} 51. Bc3 {[%clk 0:00:04]}  Nb6 {[%clk 0:00:06]} 52. Bb2 {[%clk 0:00:04]}  Nd5 {[%clk 0:00:05]} 53. Ba1 {[%clk 0:00:05]}  Nb6 {[%clk 0:00:05]} 54. Bb2 {[%clk 0:00:05]}  Na4 {[%clk 0:00:05]} 55. Ba1 {[%clk 0:00:04]}  Kb5 {[%clk 0:00:02]} 56. Kf4 {[%clk 0:00:04]}  c4 {[%clk 0:00:02]} 57. dxc4+ {[%clk 0:00:04]}  Kxc4 {[%clk 0:00:03]} 58. Kg5 {[%clk 0:00:04]}  Kd5 {[%clk 0:00:03]} 59. Kh6 {[%clk 0:00:05]}  Nc5 {[%clk 0:00:03]} 60. Kg7 {[%clk 0:00:05]}  Ke4 {[%clk 0:00:01]} 61. Kxf7 {[%clk 0:00:06]}  Kf5 {[%clk 0:00:01]} 62. Ke7 {[%clk 0:00:06]} 1-0


[Site "https://www.chess.com"]

[Event "Titled Tuesday Blitz December 13 Late 2022"]
[White "Sariego Figueredo, Wilfredo"]
[Black "Kovacevic, Radmila"]
[WhiteFideId "3500080"]
[BlackFideId "933171"]
[WhiteElo "2309"]
[BlackElo "2244"]
[Result "0-1"]
[Round "09"]
[TimeControl "180+1"]
[Date "2022.12.14"]
[WhiteClock "0:02:24"]
[BlackClock "0:02:10"]

1. d4 {[%clk 0:02:59]}  e5 {[%clk 0:02:59]} 2. dxe5 {[%clk 0:02:59]}  Nc6 {[%clk 0:02:59]} 3. f4 {[%clk 0:02:55]}  d6 {[%clk 0:02:58]} 4. Nf3 {[%clk 0:02:52]}  Bg4 {[%clk 0:02:57]} 5. exd6 {[%clk 0:02:50]}  Bxd6 {[%clk 0:02:57]} 6. h3 {[%clk 0:02:49]}  Bxf3 {[%clk 0:02:50]} 7. exf3 {[%clk 0:02:46]}  Qh4+ {[%clk 0:02:49]} 8. Ke2 {[%clk 0:02:40]}  O-O-O {[%clk 0:02:46]} 9. Nc3 {[%clk 0:02:29]}  Bc5 {[%clk 0:02:14]} 10. Qe1 {[%clk 0:02:24]}  Nd4+ {[%clk 0:02:10]} 0-1


[Site "https://www.chess.com"]

[Event "Titled Tuesday Blitz December 13 Late 2022"]
[White "Seletsky, Grigory"]
[Black "Zhu, Jiner"]
[WhiteFideId "14112191"]
[BlackFideId "8608059"]
[WhiteElo "2492"]
[BlackElo "2384"]
[Result "0-1"]
[Round "09"]
[TimeControl "180+1"]
[Date "2022.12.14"]
[WhiteClock "0:00:18"]
[BlackClock "0:01:17"]

1. e4 {[%clk 0:02:58]}  g6 {[%clk 0:02:56]} 2. d4 {[%clk 0:02:56]}  Bg7 {[%clk 0:02:53]} 3. c4 {[%clk 0:02:57]}  d6 {[%clk 0:02:54]} 4. Nc3 {[%clk 0:02:56]}  Nf6 {[%clk 0:02:54]} 5. f3 {[%clk 0:02:54]}  O-O {[%clk 0:02:54]} 6. Be3 {[%clk 0:02:54]}  c5 {[%clk 0:02:54]} 7. dxc5 {[%clk 0:02:49]}  dxc5 {[%clk 0:02:48]} 8. Qxd8 {[%clk 0:02:48]}  Rxd8 {[%clk 0:02:49]} 9. Rd1 {[%clk 0:02:46]}  Rxd1+ {[%clk 0:02:46]} 10. Kxd1 {[%clk 0:02:46]}  Nc6 {[%clk 0:02:47]} 11. Bxc5 {[%clk 0:02:46]}  Nd7 {[%clk 0:02:41]} 12. Be3 {[%clk 0:02:32]}  Bxc3 {[%clk 0:02:35]} 13. bxc3 {[%clk 0:02:30]}  b6 {[%clk 0:02:35]} 14. c5 {[%clk 0:02:25]}  Nxc5 {[%clk 0:02:34]} 15. Bxc5 {[%clk 0:02:24]}  bxc5 {[%clk 0:02:35]} 16. Kc2 {[%clk 0:02:01]}  Be6 {[%clk 0:02:31]} 17. Bb5 {[%clk 0:01:54]}  Ne5 {[%clk 0:02:27]} 18. Ne2 {[%clk 0:01:50]}  a6 {[%clk 0:02:15]} 19. Ba4 {[%clk 0:01:48]}  Bxa2 {[%clk 0:02:14]} 20. Nf4 {[%clk 0:01:38]}  Bc4 {[%clk 0:02:07]} 21. Ra1 {[%clk 0:01:31]}  Rb8 {[%clk 0:02:05]} 22. Nd5 {[%clk 0:01:29]}  e6 {[%clk 0:02:05]} 23. Ne3 {[%clk 0:01:29]}  Bd3+ {[%clk 0:02:04]} 24. Kc1 {[%clk 0:01:26]}  Nc4 {[%clk 0:02:01]} 25. Nxc4 {[%clk 0:01:15]}  Bxc4 {[%clk 0:02:02]} 26. Bc2 {[%clk 0:01:11]}  g5 {[%clk 0:02:02]} 27. Ra5 {[%clk 0:01:10]}  Bb5 {[%clk 0:02:00]} 28. c4 {[%clk 0:01:06]}  Bxc4 {[%clk 0:02:00]} 29. Rxc5 {[%clk 0:01:07]}  Bb5 {[%clk 0:01:57]} 30. Rxg5+ {[%clk 0:01:06]}  Kf8 {[%clk 0:01:57]} 31. Rc5 {[%clk 0:01:03]}  a5 {[%clk 0:01:54]} 32. Rc7 {[%clk 0:01:02]}  Be8 {[%clk 0:01:51]} 33. Ra7 {[%clk 0:01:02]}  Rb5 {[%clk 0:01:50]} 34. Ra8 {[%clk 0:00:58]}  Rc5 {[%clk 0:01:50]} 35. Kd2 {[%clk 0:00:56]}  Ke7 {[%clk 0:01:50]} 36. Ra7+ {[%clk 0:00:55]}  Kf6 {[%clk 0:01:50]} 37. f4 {[%clk 0:00:54]}  e5 {[%clk 0:01:43]} 38. g3 {[%clk 0:00:53]}  h6 {[%clk 0:01:41]} 39. Bb3 {[%clk 0:00:49]}  Kg7 {[%clk 0:01:32]} 40. Bd5 {[%clk 0:00:38]}  exf4 {[%clk 0:01:27]} 41. gxf4 {[%clk 0:00:37]}  a4 {[%clk 0:01:27]} 42. Re7 {[%clk 0:00:21]}  Kf8 {[%clk 0:01:23]} 43. Ra7 {[%clk 0:00:21]}  f5 {[%clk 0:01:22]} 44. Kd3 {[%clk 0:00:19]}  fxe4+ {[%clk 0:01:19]} 45. Bxe4 {[%clk 0:00:19]}  Rc1 {[%clk 0:01:18]} 46. Bg6 {[%clk 0:00:18]}  Bxg6+ {[%clk 0:01:17]} 0-1


[Site "https://www.chess.com"]